bitfinex-derivatives/quotes_SOLF0:USTF0_20220109
["timestamp","ask_amount","ask_price","bid_price","bid_amount"]
[1641714976022,5.69043606,140.59,140.52,27.66479]
[1641714976222,33.35522606,140.59,140.52,27.66479]
[1641714976623,33.35522606,140.59,140.51,50.74508224]
[1641714978827,39.94622606,140.59,140.51,50.74508224]
[1641714979327,5.69100991,140.58,140.51,50.74508224]
[1641714979729,5.69100991,140.58,140.52,2.6974165]
[1641714980733,33.35579991,140.58,140.52,2.6974165]
[1641714981133,5.69143434,140.57,140.52,2.6974165]
[1641714981333,14.20543434,140.57,140.52,2.6974165]
[1641714983133,5.69193346,140.55,140.52,2.6974165]
[1641714987142,5.69193346,140.55,140.5,17.79659874]
[1641714987340,5.69193346,140.55,140.5,28.35743051]
[1641714987639,45.051,140.57,140.5,28.35743051]
[1641714987839,5.69155451,140.56,140.5,28.35743051]
[1641714988441,5.69260175,140.54,140.5,28.35743051]
[1641714988640,12.24860175,140.54,140.5,28.35743051]
[1641714988843,12.24860175,140.54,140.5,2.6974165]
[1641714997755,6.556,140.54,140.5,2.6974165]
[1641714997955,34.49462643,140.56,140.5,2.6974165]
[1641714998758,51.84997224,140.58,140.5,2.6974165]
[1641714998957,42.76397224,140.58,140.5,2.6974165]
[1641714999758,42.76397224,140.58,140.5,28.35212155]
[1641714999759,2.34281205,140.57,140.5,28.35212155]
[1641715000060,10.74181205,140.57,140.5,28.35212155]
[1641715001362,8.399,140.57,140.5,28.35212155]
[1641715002862,41.4708,140.57,140.5,28.35212155]
[1641715003563,2.34337287,140.56,140.5,2.6974165]
[1641715006966,2.34337287,140.56,140.5,17.79659874]
[1641715007165,2.34337287,140.56,140.5,28.3553176]
[1641715007867,2.34337287,140.56,140.5,2.6974165]
[1641715008670,2.34337287,140.56,140.5,28.35756467]
[1641715009272,33.0718,140.57,140.5,28.35756467]
[1641715010079,2.34411179,140.56,140.5,28.35756467]
[1641715011478,2.34411179,140.56,140.5,2.6974165]
[1641715013581,2.34411179,140.56,140.5,28.3640027]
[1641715015083,30.00890179,140.56,140.5,28.3640027]
[1641715015683,27.66479,140.56,140.5,28.3640027]
[1641715017185,37.0718,140.57,140.5,28.3640027]
[1641715017387,4.0,140.57,140.5,28.3640027]
[1641715017986,4.0,140.57,140.52,15.09918224]
[1641715018587,66.76256004,140.58,140.52,15.09918224]
[1641715018788,27.66479,140.58,140.52,15.09918224]
[1641715019189,27.66479,140.58,140.53,27.66479]
[1641715019592,27.66479,140.58,140.54,15.09918224]
[1641715020594,27.66479,140.58,140.54,2.6974165]
[1641715022494,8.19293363,140.61,140.54,2.6974165]
[1641715023395,2.34239566,140.6,140.54,2.6974165]
[1641715024897,8.19293363,140.61,140.54,2.6974165]
[1641715025097,8.19293363,140.61,140.54,17.79659874]
[1641715026001,42.76397224,140.64,140.54,15.6154165]
[1641715026201,15.09918224,140.64,140.56,4.0]
[1641715026401,15.09918224,140.64,140.57,4.0]
[1641715026603,15.09918224,140.64,140.57,12.991]
[1641715027004,17.43904999,140.66,140.58,2.6974165]
[1641715027204,17.43904999,140.66,140.58,36.1182165]
[1641715027403,17.43904999,140.66,140.59,27.66479]
[1641715028203,30.00465775,140.67,140.59,30.3622065]
[1641715028904,2.33986775,140.66,140.59,27.66479]
[1641715029705,27.66479,140.67,140.59,27.66479]
[1641715030304,33.3519648,140.67,140.59,27.66479]
[1641715031806,33.3519648,140.67,140.58,33.4208]
[1641715032006,41.1709648,140.67,140.58,33.4208]
[1641715036512,5.68758394,140.66,140.58,33.4208]
[1641715037914,5.68758394,140.66,140.6,4.0]
[1641715038114,32.4587,140.68,140.6,10.887]
[1641715038313,32.4587,140.68,140.61,34.1643]
[1641715038514,48.4504034,140.69,140.61,34.1643]
[1641715038714,42.76397224,140.69,140.61,34.1643]
[1641715038914,27.66479,140.69,140.61,34.1643]
[1641715039817,27.66479,140.69,140.62,27.66479]
[1641715040220,47.32718224,140.71,140.62,27.66479]
[1641715040418,15.09918224,140.71,140.62,31.66479]
[1641715040619,15.09918224,140.72,140.62,27.66479]
[1641715041221,15.09918224,140.72,140.62,31.66479]
[1641715041620,2.3307266,140.72,140.62,31.66479]
[1641715043225,17.42990884,140.72,140.62,31.66479]
[1641715043827,17.42990884,140.72,140.62,59.32958]
[1641715045329,2.3307266,140.72,140.62,59.32958]
[1641715046131,17.42990884,140.72,140.62,59.32958]
[1641715046331,24.14790884,140.72,140.62,59.32958]
[1641715047537,2.3307266,140.71,140.62,4.0]
[1641715048237,2.3307266,140.71,140.63,27.66479]
[1641715050543,6.3307266,140.71,140.61,61.82909]
[1641715050741,5.68588988,140.7,140.61,61.82909]
[1641715051346,38.97458988,140.7,140.61,61.82909]
[1641715051645,38.97458988,140.7,140.62,2.69179279]
[1641715052244,27.66479,140.69,140.62,2.69179279]
[1641715052447,35.72779,140.69,140.62,2.69179279]
[1641715052646,38.06495347,140.69,140.62,2.69179279]
[1641715053347,35.72779,140.69,140.62,2.69179279]
[1641715054354,8.063,140.69,140.62,2.69179279]
[1641715054852,30.00366739,140.68,140.62,2.69179279]
[1641715055251,34.00366739,140.68,140.62,2.69179279]
[1641715055553,4.0,140.67,140.62,2.69179279]
[1641715055752,5.68758947,140.66,140.62,2.69179279]
[1641715055955,12.29658947,140.66,140.62,2.69179279]
[1641715056351,12.29658947,140.66,140.61,2.69179279]
[1641715058054,2.33989537,140.65,140.6,2.69179279]
[1641715058954,30.00468537,140.65,140.6,2.69179279]
[1641715059754,27.66479,140.65,140.6,2.69179279]
[1641715061456,6.609,140.66,140.6,2.69179279]
[1641715061656,15.09918224,140.67,140.6,2.69179279]
[1641715062457,17.43884444,140.67,140.6,2.69179279]
[1641715063760,35.8028622,140.67,140.6,2.69179279]
[1641715064659,2.3396622,140.66,140.6,2.69179279]
[1641715064859,2.3396622,140.66,140.6,6.69179279]
[1641715065059,2.3396622,140.66,140.61,27.66479]
[1641715065261,2.3396622,140.67,140.61,30.35658279]
[1641715065460,2.3396622,140.67,140.61,34.35658279]
[1641715065660,2.3396622,140.67,140.62,4.0]
[1641715065859,2.3396622,140.67,140.62,11.473]
[1641715066159,2.3396622,140.69,140.62,14.16479279]
[1641715066359,2.3396622,140.69,140.62,10.16479279]
[1641715066560,2.3396622,140.69,140.62,14.16479279]
[1641715066961,15.09918224,140.71,140.63,2.69179279]
[1641715067261,15.09918224,140.71,140.63,36.71479279]
[1641715067763,15.09918224,140.71,140.64,2.69179279]
[1641715068765,15.09918224,140.7,140.64,2.69179279]
[1641715069165,15.09918224,140.7,140.64,30.35658279]
[1641715069366,15.09918224,140.71,140.64,30.35658279]
[1641715070067,15.09918224,140.71,140.64,27.66479]
[1641715070768,15.09918224,140.71,140.64,36.24979]
[1641715072070,15.09918224,140.71,140.65,2.69510058]
[1641715072472,15.09918224,140.71,140.64,27.66479]
[1641715072671,15.09918224,140.7,140.64,27.66479]
[1641715074073,15.09918224,140.71,140.63,34.023]
[1641715074473,48.58878224,140.71,140.63,34.023]
[1641715075073,42.76397224,140.7,140.63,34.023]
[1641715075274,51.19497224,140.7,140.63,34.023]
[1641715075676,2.3396622,140.69,140.63,34.023]
[1641715077281,2.3396622,140.69,140.64,2.6950235]
[1641715079785,2.3396622,140.69,140.63,34.023]
[1641715087999,17.43884444,140.7,140.64,2.69521543]
[1641715091101,15.09918224,140.69,140.64,2.69521543]
[1641715093103,21.35618224,140.69,140.64,2.69521543]
[1641715093504,2.3396622,140.68,140.64,2.69521543]
[1641715094505,25.08484444,140.69,140.64,2.69521543]
[1641715095305,2.3396622,140.68,140.64,2.69521543]
[1641715096009,17.43884444,140.69,140.64,2.69521543]
[1641715098212,17.43884444,140.69,140.65,4.0]
[1641715098413,9.61534616,140.7,140.66,4.0]
[1641715098612,40.10890086,140.72,140.66,4.0]
[1641715098613,40.10890086,140.72,140.67,4.0]
[1641715098814,40.10890086,140.76,140.66,14.26742765]
[1641715099013,40.10890086,140.76,140.67,32.7107]
[1641715099214,67.77369086,140.76,140.68,27.66479]
[1641715099414,20.18976104,140.75,140.68,27.66479]
[1641715100014,27.66479,140.76,140.68,27.66479]
[1641715100616,37.26452506,140.76,140.68,27.66479]
[1641715101217,27.66479,140.76,140.68,27.66479]
[1641715102120,5.68307298,140.77,140.68,27.66479]
[1641715102318,38.16479,140.78,140.68,27.66479]
[1641715102919,27.66479,140.78,140.68,27.66479]
[1641715103723,27.66479,140.78,140.69,4.0]
[1641715103922,27.66479,140.78,140.69,12.561]
[1641715104122,27.66479,140.78,140.69,8.561]
[1641715104322,27.66479,140.78,140.7,5.68576265]
[1641715104624,27.66479,140.78,140.69,8.561]
[1641715106226,27.66479,140.78,140.69,12.561]
[1641715106825,27.66479,140.78,140.69,8.561]
[1641715107228,27.66479,140.78,140.71,27.66479]
[1641715116934,32.8607,140.79,140.71,27.66479]
[1641715119438,27.66479,140.78,140.71,27.66479]
[1641715121038,32.8607,140.79,140.71,27.66479]
[1641715121439,27.66479,140.78,140.71,27.66479]
[1641715122238,27.66479,140.78,140.7,34.0318]
[1641715122439,4.0,140.77,140.7,34.0318]
[1641715122844,4.0,140.77,140.66,6.82455673]
[1641715123040,34.2558,140.76,140.67,32.5355]
[1641715123240,51.89850373,140.76,140.67,32.5355]
[1641715123442,27.66479,140.73,140.67,32.5355]
[1641715124441,27.66479,140.73,140.64,27.66479]
[1641715125644,27.66479,140.73,140.65,33.5855]
[1641715125844,27.66479,140.73,140.65,41.0625]
[1641715126950,27.66479,140.73,140.66,4.0]
[1641715127145,34.2558,140.76,140.66,4.0]
[1641715127548,34.2558,140.76,140.67,27.66479]
[1641715128450,34.2558,140.76,140.68,34.6173]
[1641715129350,34.2558,140.76,140.64,27.66479]
[1641715129553,27.66479,140.74,140.65,48.50231556]
[1641715130755,27.66479,140.74,140.65,52.50231556]
[1641715131554,49.35721556,140.76,140.67,27.66479]
[1641715131754,49.35721556,140.76,140.68,33.3395]
[1641715133459,27.66479,140.75,140.68,33.3395]
[1641715136558,36.66979,140.75,140.68,33.3395]
[1641715136761,36.66979,140.75,140.66,15.10141556]
[1641715137561,70.01858553,140.75,140.66,15.10141556]
[1641715137761,15.10141556,140.74,140.65,32.585]
[1641715137961,35.6029,140.73,140.65,32.585]
[1641715138361,4.0,140.71,140.64,42.76620556]
[1641715138563,11.961,140.71,140.66,2.69557505]
[1641715138762,4.0,140.7,140.66,2.69557505]
[1641715138962,13.64674353,140.71,140.63,15.10141556]
[1641715139161,5.68650419,140.69,140.63,15.10141556]
[1641715139567,27.66479,140.67,140.6,15.10141556]
[1641715139762,27.66479,140.67,140.61,35.4061]
[1641715140164,31.66479,140.67,140.61,35.4061]
[1641715146275,4.0,140.67,140.61,35.4061]
[1641715147677,31.66479,140.67,140.61,35.4061]
[1641715148178,37.35195517,140.67,140.61,35.4061]
[1641715148678,15.37452698,140.67,140.61,35.4061]
[1641715148880,21.06952698,140.67,140.61,35.4061]
[1641715149679,48.73431698,140.67,140.61,35.4061]
[1641715150181,9.68778195,140.66,140.61,35.4061]
[1641715150381,9.68778195,140.66,140.59,42.76620556]
[1641715151283,9.68778195,140.66,140.58,59.21684172]
[1641715151684,37.35257195,140.66,140.58,86.88163172]
[1641715151986,37.35257195,140.66,140.58,76.35430556]
[1641715152288,9.68778195,140.66,140.58,48.68951556]
[1641715152688,9.68778195,140.66,140.59,25.63407173]
[1641715153688,37.35257195,140.66,140.59,25.63407173]
[1641715155090,37.35257195,140.66,140.59,15.10141556]
[1641715155291,37.35257195,140.66,140.58,76.35430556]
[1641715159099,37.35257195,140.66,140.58,61.25289]
[1641715159300,4.0,140.65,140.58,61.25289]
[1641715159499,5.68830383,140.64,140.58,61.25289]
[1641715160400,14.70330383,140.64,140.58,61.25289]
[1641715161000,14.70330383,140.64,140.58,33.5881]
[1641715162002,27.66479,140.63,140.58,33.5881]
[1641715167113,18.70330383,140.64,140.58,33.5881]
[1641715167309,4.0,140.6,140.57,15.10141556]
[1641715167506,11.592,140.6,140.57,1.556e-05]
[1641715167706,9.69034006,140.59,140.57,1.556e-05]
[1641715167906,9.69034006,140.59,140.54,40.10890086]
[1641715167907,4.0,140.58,140.54,40.10890086]
[1641715168106,4.0,140.58,140.5,34.0669]
[1641715168107,27.66479,140.55,140.5,34.0669]
[1641715168306,27.66479,140.55,140.48,47.22355349]
[1641715168307,35.47179,140.55,140.48,47.22355349]
[1641715168507,41.16399317,140.55,140.48,40.10890086]
[1641715168706,45.16399317,140.55,140.48,40.10890086]
[1641715169307,4.0,140.53,140.48,50.63959464]
[1641715169508,4.0,140.53,140.48,10.53069378]
[1641715170008,27.66479,140.52,140.48,10.53069378]
[1641715170209,36.50579,140.52,140.48,10.53069378]
[1641715170510,36.50579,140.52,140.47,35.1432]
[1641715170908,40.50579,140.52,140.47,35.1432]
[1641715171410,46.19927086,140.52,140.44,7.11642471]
[1641715172314,46.19927086,140.52,140.44,17.63088704]
[1641715174417,4.0,140.5,140.44,17.63088704]
[1641715174822,4.0,140.49,140.43,34.9998]
[1641715175018,10.813,140.49,140.43,34.9998]
[1641715175217,6.813,140.49,140.41,34.3303]
[1641715175419,6.813,140.49,140.4,47.22760526]
[1641715175919,6.813,140.49,140.4,40.8808044]
[1641715176219,27.66479,140.48,140.4,40.8808044]
[1641715176619,31.66479,140.48,140.4,33.7621]
[1641715177020,5.69564717,140.46,140.4,33.7621]
[1641715177221,13.02064717,140.46,140.4,33.7621]
[1641715177423,13.02071336,140.46,140.4,33.7621]
[1641715177624,7.325,140.46,140.4,33.7621]
[1641715178221,7.325,140.46,140.44,27.66479]
[1641715178421,29.44479,140.52,140.44,27.66479]
[1641715178622,27.66479,140.52,140.44,27.66479]
[1641715179221,27.66479,140.52,140.44,61.97829]
[1641715180425,43.38086582,140.53,140.44,61.97829]
[1641715180625,6.83042117,140.55,140.44,61.97829]
[1641715180824,6.83042117,140.55,140.44,65.97829]
[1641715181524,6.83042117,140.55,140.45,2.67608679]
[1641715181725,9.83293678,140.59,140.47,4.0]
[1641715181925,9.83293678,140.59,140.48,37.3778]
[1641715182327,9.83293678,140.59,140.51,27.66479]
[1641715182529,9.83293678,140.59,140.51,36.24879]
[1641715183127,27.66479,140.61,140.51,36.24879]
[1641715183627,27.66479,140.61,140.52,2.67608679]
[1641715185429,4.0,140.59,140.52,2.67608679]
[1641715185630,4.0,140.58,140.52,2.67608679]
[1641715186029,9.6908591,140.58,140.49,61.30419]
[1641715186229,27.66479,140.56,140.49,61.30419]
[1641715186429,33.83679,140.56,140.49,27.66479]
[1641715188330,33.83679,140.56,140.48,33.3778]
[1641715188531,33.83679,140.56,140.45,62.23829]
[1641715188730,4.0,140.53,140.44,89.0]
[1641715188930,11.063,140.53,140.49,2.68113931]
[1641715189130,4.0,140.52,140.49,2.68113931]
[1641715189631,9.6931751,140.52,140.44,2.68113931]
[1641715190232,5.6931751,140.52,140.44,2.68113931]
[1641715190432,34.72779,140.53,140.44,2.68113931]
[1641715190831,34.72779,140.53,140.44,9.79781724]
[1641715191032,34.72779,140.53,140.44,2.68113931]
[1641715191331,38.72779,140.53,140.45,2.68113931]
[1641715192331,38.72779,140.53,140.44,2.68113931]
[1641715192531,4.0,140.52,140.44,2.68113931]
[1641715192833,38.72779,140.53,140.44,2.68113931]
[1641715194735,44.42077656,140.53,140.44,2.68113931]
[1641715195435,9.69347344,140.52,140.44,13.19521151]
[1641715195635,5.69347344,140.52,140.44,13.19521151]
[1641715195834,9.69347344,140.52,140.44,13.19521151]
[1641715196734,4.0,140.49,140.44,13.19521151]
[1641715196937,7.806,140.49,140.44,2.68113931]
[1641715197136,11.806,140.49,140.44,2.68113931]
[1641715197736,4.0,140.47,140.44,2.68113931]
[1641715197942,4.0,140.45,140.44,2.68113931]
[1641715198138,5.69706199,140.43,140.39,40.10890086]
[1641715198338,9.69706199,140.43,140.39,40.10890086]
[1641715198539,27.66479,140.41,140.39,40.10890086]
[1641715198737,33.70779,140.41,140.39,40.10890086]
[1641715199136,37.70779,140.41,140.39,40.10890086]
[1641715199337,33.70779,140.41,140.37,15.09988746]
[1641715199539,6.043,140.41,140.37,15.09988746]
[1641715200541,5.69720949,140.42,140.37,15.09988746]
[1641715200742,5.69720949,140.42,140.36,15.09988746]
[1641715208554,5.69720949,140.42,140.36,42.76467746]
[1641715210255,11.39467455,140.42,140.36,42.76467746]
[1641715211858,5.69746506,140.42,140.36,42.76467746]
[1641715212059,5.69722237,140.42,140.36,42.76467746]
[1641715213459,14.77722237,140.42,140.36,42.76467746]
[1641715214461,5.6982062,140.4,140.36,42.76467746]
[1641715214863,9.6982062,140.4,140.36,42.76467746]
[1641715215064,5.69856841,140.39,140.36,42.76467746]
[1641715215262,18.53956841,140.39,140.36,42.76467746]
[1641715215463,14.53956841,140.39,140.36,42.76467746]
[1641715215663,18.53956841,140.39,140.36,42.76467746]
[1641715216164,4.0,140.38,140.36,42.76467746]
[1641715216565,14.53956841,140.39,140.36,42.76467746]
[1641715216764,4.0,140.38,140.36,42.76467746]
[1641715217164,4.0,140.38,140.36,15.09988746]
[1641715217365,5.69937534,140.37,140.36,15.09988746]
[1641715217567,9.69937534,140.37,140.36,15.09988746]
[1641715217967,5.70055434,140.34,140.32,15.06250283]
[1641715218167,14.17355434,140.34,140.32,15.06250283]
[1641715218970,8.473,140.34,140.3,27.66479]
[1641715219169,5.69847986,140.39,140.3,27.66479]
[1641715219370,5.69847986,140.39,140.31,7.12326816]
[1641715219569,1.78,140.44,140.34,7.12174625]
[1641715219769,42.07525476,140.45,140.34,13.05174625]
[1641715219969,8.20265476,140.45,140.34,13.05174625]
[1641715220170,8.20265476,140.45,140.35,4.0]
[1641715220572,8.20265476,140.45,140.34,17.05174625]
[1641715220779,35.86744476,140.45,140.37,27.66479]
[1641715220971,35.86744476,140.45,140.37,34.53079]
[1641715221574,8.20265476,140.45,140.37,34.53079]
[1641715222075,8.20265476,140.45,140.37,41.651015]
[1641715222776,8.20265476,140.45,140.4,27.66479]
[1641715227378,27.66479,140.47,140.4,27.66479]
[1641715227579,5.69629037,140.45,140.38,66.25126911]
[1641715227779,5.69629037,140.45,140.38,10.51706511]
[1641715228180,27.66479,140.47,140.38,10.51706511]
[1641715229181,55.32958,140.47,140.38,10.51706511]
[1641715229986,5.6956133,140.46,140.38,10.51706511]
[1641715230587,5.6956133,140.46,140.38,14.51706511]
[1641715230787,5.69471226,140.49,140.4,11.11845103]
[1641715230987,5.69471226,140.49,140.43,7.11718444]
[1641715231188,27.66479,140.5,140.43,42.51797444]
[1641715231991,27.66479,140.5,140.44,10.51706511]
[1641715232287,27.66479,140.52,140.44,10.51706511]
[1641715232789,27.66479,140.52,140.46,7.11566514]
[1641715232991,6.82968763,140.57,140.46,8.501]
[1641715233189,27.66479,140.58,140.51,27.66479]
[1641715233390,27.66479,140.58,140.51,36.01279]
[1641715233789,27.66479,140.58,140.51,8.348]
[1641715234390,27.66479,140.58,140.49,34.77893648]
[1641715237095,27.66479,140.58,140.49,27.66479]
[1641715237292,27.66479,140.55,140.49,27.66479]
[1641715242097,8.741,140.56,140.48,35.348]
[1641715243297,8.741,140.56,140.49,27.66479]
[1641715243698,8.741,140.56,140.49,37.14079]
[1641715244199,8.741,140.56,140.49,41.14079]
[1641715244800,8.741,140.56,140.49,37.14079]
[1641715245799,8.741,140.56,140.49,41.14079]
[1641715246901,8.741,140.56,140.52,4.0]
[1641715247100,8.741,140.56,140.52,12.021]
[1641715247302,8.741,140.56,140.52,35.68579]
[1641715248703,8.741,140.56,140.52,39.68579]
[1641715249505,0.0001,140.56,140.52,39.68579]
[1641715250207,0.0001,140.56,140.53,2.68236089]
[1641715251410,0.0001,140.56,140.55,31.66479]
[1641715251609,0.0001,140.56,140.55,39.25979]
[1641715252111,0.0001,140.56,140.55,41.94215089]
[1641715253413,5.934,140.59,140.55,41.94215089]
[1641715253612,5.934,140.59,140.57,4.0]
[1641715253811,5.934,140.59,140.56,4.0]
[1641715254213,5.934,140.59,140.57,4.0]
[1641715255114,5.934,140.59,140.56,4.0]
[1641715255316,5.934,140.59,140.57,4.0]
[1641715255717,5.934,140.59,140.56,4.0]
[1641715256317,5.934,140.59,140.55,27.66479]
[1641715256916,5.934,140.59,140.53,32.766]
[1641715257117,11.62444066,140.59,140.51,15.01815936]
[1641715257318,11.11794434,140.57,140.51,15.01815936]
[1641715257518,27.66479,140.52,140.51,15.01815936]
[1641715257719,35.53079,140.52,140.51,15.01815936]
[1641715257921,35.53079,140.52,140.44,15.01815936]
[1641715259022,7.866,140.52,140.45,4.0]
[1641715259221,27.66479,140.54,140.45,4.0]
[1641715259420,27.66479,140.57,140.47,4.0]
[1641715260425,27.66479,140.57,140.48,2.68636512]
[1641715261423,27.66479,140.54,140.48,2.68636512]
[1641715262423,27.66479,140.54,140.46,28.21464469]
[1641715262622,34.49879,140.54,140.46,28.21464469]
[1641715263823,34.49879,140.54,140.46,2.68636512]
[1641715264924,4.0,140.52,140.46,2.68636512]
[1641715265124,5.69395413,140.5,140.46,6.512e-05]
[1641715265324,11.62595413,140.5,140.45,15.01815936]
[1641715265526,27.66479,140.46,140.45,5.936e-05]
[1641715265724,27.66479,140.46,140.38,59.7307]
[1641715265725,34.45779,140.46,140.41,5.936e-05]
[1641715266526,40.15376193,140.46,140.41,5.936e-05]
[1641715266726,40.15376193,140.46,140.38,40.10890086]
[1641715266926,4.0,140.44,140.37,10.52774869]
[1641715267128,5.69720874,140.42,140.37,10.52774869]
[1641715267330,14.81420874,140.42,140.37,10.52774869]
[1641715267528,9.117,140.42,140.37,10.52774869]
[1641715267828,9.117,140.42,140.35,34.78577554]
[1641715268130,9.117,140.42,140.35,27.66479]
[1641715269130,27.66479,140.43,140.35,27.66479]
[1641715269330,27.66479,140.43,140.35,38.19253869]
[1641715270332,5.69636415,140.45,140.35,10.52774869]
[1641715270633,5.69636415,140.45,140.34,10.52774869]
[1641715270833,9.69636415,140.45,140.34,10.52774869]
[1641715271532,27.66479,140.42,140.33,38.19253869]
[1641715272835,27.66479,140.42,140.33,27.66479]
[1641715273035,27.66479,140.42,140.33,31.66479]
[1641715273236,27.66479,140.42,140.34,4.0]
[1641715273534,27.66479,140.44,140.35,4.0]
[1641715273935,27.66479,140.44,140.34,12.664]
[1641715274335,27.66479,140.44,140.35,4.0]
[1641715274537,27.66479,140.44,140.34,12.664]
[1641715274735,27.66479,140.44,140.35,4.0]
[1641715275136,27.66479,140.44,140.34,14.444]
[1641715275338,27.66479,140.44,140.35,4.0]
[1641715275638,27.66479,140.44,140.36,4.0]
[1641715276138,27.66479,140.44,140.37,4.0]
[1641715276339,27.66479,140.44,140.37,11.091]
[1641715278241,27.66479,140.44,140.38,4.0]
[1641715278444,6.793,140.46,140.39,4.0]
[1641715278641,6.793,140.46,140.38,4.0]
[1641715279644,6.793,140.46,140.37,38.75579]
[1641715280043,6.793,140.46,140.38,4.0]
[1641715281644,27.66479,140.47,140.38,4.0]
[1641715282345,4.0,140.45,140.36,35.4483]
[1641715282547,4.0,140.44,140.36,33.6683]
[1641715282845,5.69717537,140.43,140.33,7.12225348]
[1641715283047,5.6975813,140.42,140.33,7.12225348]
[1641715283448,5.6975813,140.42,140.32,33.484]
[1641715283648,9.6975813,140.42,140.32,33.484]
[1641715283845,27.66479,140.39,140.32,33.484]
[1641715286948,27.66479,140.39,140.33,10.50884172]
[1641715287149,27.66479,140.39,140.33,17.08884172]
[1641715287550,27.66479,140.41,140.33,21.08884172]
[1641715288351,5.6975813,140.42,140.33,21.08884172]
[1641715289854,27.66479,140.44,140.38,4.0]
[1641715290056,5.69621887,140.45,140.41,4.0]
[1641715290355,5.69417308,140.5,140.41,10.209]
[1641715291154,5.69417308,140.5,140.43,4.0]
[1641715291855,8.011,140.53,140.44,4.0]
[1641715292057,8.011,140.53,140.44,11.069]
[1641715293256,8.011,140.53,140.44,21.57784172]
[1641715293556,8.011,140.53,140.44,17.57784172]
[1641715293855,27.66479,140.45,140.41,40.10890086]
[1641715294057,33.36027132,140.47,140.41,40.10890086]
[1641715294259,33.36027132,140.47,140.38,40.10890086]
[1641715295559,33.36027132,140.47,140.37,39.3365]
[1641715295760,33.36027132,140.47,140.39,4.0]
[1641715295960,27.66479,140.47,140.39,10.966]
[1641715296161,36.07379,140.5,140.39,10.966]
[1641715296461,36.07379,140.5,140.39,26.06442938]
[1641715297061,36.07379,140.5,140.4,15.09842938]
[1641715297463,36.07379,140.5,140.4,19.09842938]
[1641715297763,36.07379,140.5,140.4,15.09842938]
[1641715298063,63.73858,140.5,140.4,19.09842938]
[1641715298264,63.73858,140.5,140.4,15.09842938]
[1641715298864,5.69439037,140.49,140.4,15.09842938]
[1641715299264,4.0,140.48,140.4,15.09842938]
[1641715299466,5.69439037,140.49,140.39,22.06442938]
[1641715300065,27.66479,140.47,140.39,22.06442938]
[1641715301668,36.07379,140.5,140.39,26.06442938]
[1641715301870,36.07379,140.5,140.39,53.72921938]
[1641715302071,36.07379,140.5,140.4,15.09842938]
[1641715302870,40.07379,140.5,140.4,15.09842938]
[1641715303470,36.07379,140.5,140.4,15.09842938]
[1641715303870,27.66479,140.46,140.4,15.09842938]
[1641715304071,27.66479,140.46,140.39,49.72921938]
[1641715304271,5.69452592,140.49,140.39,49.72921938]
[1641715304772,5.69452592,140.49,140.4,15.09842938]
[1641715305672,5.69452592,140.49,140.4,17.78957472]
[1641715305873,27.66479,140.47,140.4,17.78957472]
[1641715306973,27.66479,140.47,140.4,2.69114534]
[1641715315591,5.69478595,140.48,140.4,6.69114534]
[1641715315792,15.09842938,140.51,140.44,4.0]
[1641715316090,15.09842938,140.51,140.44,10.406]
[1641715316290,15.09842938,140.51,140.44,6.406]
[1641715316692,15.09842938,140.51,140.45,2.69114534]
[1641715316992,6.83176315,140.53,140.45,2.69114534]
[1641715317393,42.76321938,140.56,140.45,2.69114534]
[1641715317692,42.76321938,140.56,140.45,6.69114534]
[1641715317893,42.76321938,140.56,140.45,2.69114534]
[1641715318092,42.76321938,140.56,140.5,31.66479]
[1641715318295,15.09842938,140.57,140.52,4.0]
[1641715318593,40.10890086,140.6,140.52,11.11237553]
[1641715318794,40.10890086,140.6,140.53,4.0]
[1641715318993,40.10890086,140.6,140.53,10.782]
[1641715319293,40.10890086,140.6,140.53,6.782]
[1641715319493,4.0,140.65,140.53,9.47314534]
[1641715319992,45.32241788,140.66,140.53,13.47314534]
[1641715320193,37.35240788,140.66,140.55,27.66479]
[1641715320394,33.35240788,140.66,140.55,27.66479]
[1641715320593,4.0,140.62,140.55,27.66479]
[1641715320794,4.0,140.6,140.54,2.69114534]
[1641715320995,10.656,140.6,140.54,2.69114534]